[Event "Titled Tuesday Blitz December 7 2021"]
[White "Pham, Le Thao Nguyen"]
[Black "Matveeva, Olga"]
[WhiteFideId "12401226"]
[BlackFideId "24107018"]
[WhiteElo "2286"]
[BlackElo "2083"]
[Result "1-0"]
[Round "07"]
[TimeControl "180+1"]
[Date "2021.12.07"]
[WhiteClock "0:00:09"]
[BlackClock "0:00:05"]

1. Nf3 {[%clk 0:02:58]}  d5 {[%clk 0:02:59]} 2. d4 {[%clk 0:02:57]}  e6 {[%clk 0:02:59]} 3. c4 {[%clk 0:02:58]}  Nf6 {[%clk 0:02:59]} 4. Nc3 {[%clk 0:02:58]}  Be7 {[%clk 0:02:58]} 5. Bf4 {[%clk 0:02:57]}  O-O {[%clk 0:02:58]} 6. e3 {[%clk 0:02:58]}  Nbd7 {[%clk 0:02:56]} 7. Qc2 {[%clk 0:02:53]}  c5 {[%clk 0:02:51]} 8. dxc5 {[%clk 0:02:40]}  Nxc5 {[%clk 0:02:49]} 9. Rd1 {[%clk 0:02:40]}  b6 {[%clk 0:02:32]} 10. cxd5 {[%clk 0:02:29]}  exd5 {[%clk 0:02:29]} 11. Be2 {[%clk 0:02:27]}  Bb7 {[%clk 0:02:22]} 12. O-O {[%clk 0:02:27]}  Rc8 {[%clk 0:02:21]} 13. Qb1 {[%clk 0:02:13]}  Nh5 {[%clk 0:02:15]} 14. Be5 {[%clk 0:02:08]}  g6 {[%clk 0:01:56]} 15. Nd4 {[%clk 0:01:59]}  Ng7 {[%clk 0:01:54]} 16. Bf3 {[%clk 0:01:54]}  Re8 {[%clk 0:01:47]} 17. Ndb5 {[%clk 0:01:48]}  a6 {[%clk 0:01:31]} 18. Bxd5 {[%clk 0:01:05]}  axb5 {[%clk 0:01:24]} 19. Bxb7 {[%clk 0:01:05]}  Nxb7 {[%clk 0:01:14]} 20. Rxd8 {[%clk 0:01:04]}  Rexd8 {[%clk 0:01:15]} 21. Nxb5 {[%clk 0:00:57]}  Nc5 {[%clk 0:01:12]} 22. Na7 {[%clk 0:00:49]}  Ra8 {[%clk 0:01:08]} 23. Nc6 {[%clk 0:00:49]}  Rd7 {[%clk 0:01:06]} 24. Nxe7+ {[%clk 0:00:49]}  Rxe7 {[%clk 0:01:07]} 25. Bc3 {[%clk 0:00:44]}  Nge6 {[%clk 0:01:06]} 26. h3 {[%clk 0:00:43]}  f5 {[%clk 0:01:03]} 27. Rd1 {[%clk 0:00:42]}  Ne4 {[%clk 0:01:02]} 28. Bb4 {[%clk 0:00:40]}  Rc7 {[%clk 0:01:00]} 29. a3 {[%clk 0:00:41]}  Kf7 {[%clk 0:00:57]} 30. Qd3 {[%clk 0:00:28]}  Rac8 {[%clk 0:00:49]} 31. f3 {[%clk 0:00:19]}  Nf6 {[%clk 0:00:40]} 32. Bc3 {[%clk 0:00:15]}  Nd7 {[%clk 0:00:37]} 33. Qd6 {[%clk 0:00:10]}  h5 {[%clk 0:00:31]} 34. e4 {[%clk 0:00:09]}  f4 {[%clk 0:00:27]} 35. Qb4 {[%clk 0:00:05]}  Ke8 {[%clk 0:00:18]} 36. Rd6 {[%clk 0:00:06]}  Kf7 {[%clk 0:00:17]} 37. Qb3 {[%clk 0:00:06]}  Nc5 {[%clk 0:00:15]} 38. Qd5 {[%clk 0:00:07]}  Ke7 {[%clk 0:00:11]} 39. Qe5 {[%clk 0:00:05]}  Kf7 {[%clk 0:00:09]} 40. Qf6+ {[%clk 0:00:05]}  Ke8 {[%clk 0:00:08]} 41. Rxe6+ {[%clk 0:00:05]}  Nxe6 {[%clk 0:00:08]} 42. Qxe6+ {[%clk 0:00:06]}  Kd8 {[%clk 0:00:08]} 43. Qxg6 {[%clk 0:00:07]}  Rd7 {[%clk 0:00:08]} 44. Qf6+ {[%clk 0:00:07]}  Kc7 {[%clk 0:00:08]} 45. Qe6 {[%clk 0:00:07]}  Rd1+ {[%clk 0:00:07]} 46. Kh2 {[%clk 0:00:08]}  Rcd8 {[%clk 0:00:07]} 47. Qe5+ {[%clk 0:00:07]}  Kb7 {[%clk 0:00:07]} 48. Qxf4 {[%clk 0:00:08]}  R8d7 {[%clk 0:00:07]} 49. e5 {[%clk 0:00:08]}  R1d3 {[%clk 0:00:06]} 50. Qe4+ {[%clk 0:00:09]}  R3d5 {[%clk 0:00:05]} 51. e6 {[%clk 0:00:09]} 1-0


[Site "https://www.chess.com"]

[Event "Titled Tuesday Blitz December 7 2021"]
[White "Piesik, Piotr"]
[Black "Djordjevic, Vuk"]
[WhiteFideId "1136194"]
[BlackFideId "902098"]
[WhiteElo "2336"]
[BlackElo "2463"]
[Result "1-0"]
[Round "07"]
[TimeControl "180+1"]
[Date "2021.12.07"]
[WhiteClock "0:00:31"]
[BlackClock "0:00:01"]

1. Nf3 {[%clk 0:03:00]}  Nf6 {[%clk 0:02:59]} 2. g3 {[%clk 0:02:59]}  d5 {[%clk 0:02:59]} 3. Bg2 {[%clk 0:03:00]}  e6 {[%clk 0:02:59]} 4. O-O {[%clk 0:03:00]}  b5 {[%clk 0:02:59]} 5. d3 {[%clk 0:03:01]}  a5 {[%clk 0:02:58]} 6. Nbd2 {[%clk 0:03:02]}  c5 {[%clk 0:02:58]} 7. e4 {[%clk 0:03:02]}  Be7 {[%clk 0:02:55]} 8. Qe2 {[%clk 0:03:01]}  Nc6 {[%clk 0:02:54]} 9. c3 {[%clk 0:03:00]}  O-O {[%clk 0:02:53]} 10. e5 {[%clk 0:03:00]}  Nd7 {[%clk 0:02:53]} 11. h4 {[%clk 0:03:00]}  Ba6 {[%clk 0:02:52]} 12. Re1 {[%clk 0:02:59]}  b4 {[%clk 0:02:52]} 13. c4 {[%clk 0:02:59]}  a4 {[%clk 0:02:52]} 14. cxd5 {[%clk 0:02:56]}  exd5 {[%clk 0:02:53]} 15. e6 {[%clk 0:02:56]}  Nb6 {[%clk 0:02:50]} 16. exf7+ {[%clk 0:02:49]}  Rxf7 {[%clk 0:02:50]} 17. Ne5 {[%clk 0:02:44]}  Nxe5 {[%clk 0:02:35]} 18. Qxe5 {[%clk 0:02:45]}  Bxd3 {[%clk 0:02:35]} 19. Nf3 {[%clk 0:02:42]}  Nc4 {[%clk 0:02:15]} 20. Qe6 {[%clk 0:02:33]}  Bf5 {[%clk 0:02:07]} 21. Qc6 {[%clk 0:02:33]}  Rf6 {[%clk 0:01:54]} 22. Qb7 {[%clk 0:02:30]}  Bf8 {[%clk 0:01:33]} 23. Bg5 {[%clk 0:02:28]}  Na5 {[%clk 0:01:09]} 24. Qb5 {[%clk 0:02:07]}  Nc4 {[%clk 0:00:47]} 25. Ne5 {[%clk 0:01:55]}  Be6 {[%clk 0:00:32]} 26. Nxc4 {[%clk 0:01:53]}  Rb8 {[%clk 0:00:25]} 27. Qc6 {[%clk 0:01:41]}  Bf7 {[%clk 0:00:10]} 28. Bxf6 {[%clk 0:01:40]}  Qxf6 {[%clk 0:00:10]} 29. Qxf6 {[%clk 0:01:31]}  gxf6 {[%clk 0:00:11]} 30. Ne3 {[%clk 0:01:30]}  d4 {[%clk 0:00:10]} 31. Nd5 {[%clk 0:01:26]}  Rd8 {[%clk 0:00:10]} 32. Nxf6+ {[%clk 0:01:26]}  Kg7 {[%clk 0:00:11]} 33. Ne4 {[%clk 0:01:25]}  c4 {[%clk 0:00:09]} 34. Ng5 {[%clk 0:01:23]}  c3 {[%clk 0:00:03]} 35. bxc3 {[%clk 0:01:23]}  bxc3 {[%clk 0:00:02]} 36. Nxf7 {[%clk 0:01:23]}  Kxf7 {[%clk 0:00:03]} 37. Be4 {[%clk 0:01:12]}  d3 {[%clk 0:00:03]} 38. Bxd3 {[%clk 0:01:08]}  Rxd3 {[%clk 0:00:04]} 39. Re3 {[%clk 0:01:08]}  Rxe3 {[%clk 0:00:03]} 40. fxe3 {[%clk 0:01:09]}  Ke6 {[%clk 0:00:03]} 41. Kf2 {[%clk 0:01:07]}  Kd5 {[%clk 0:00:04]} 42. Ke2 {[%clk 0:01:06]}  Kc4 {[%clk 0:00:04]} 43. Rc1 {[%clk 0:01:01]}  Ba3 {[%clk 0:00:03]} 44. Rc2 {[%clk 0:00:59]}  Bd6 {[%clk 0:00:03]} 45. g4 {[%clk 0:00:59]}  Bg3 {[%clk 0:00:04]} 46. h5 {[%clk 0:00:59]}  h6 {[%clk 0:00:04]} 47. Kf3 {[%clk 0:00:49]}  Bh4 {[%clk 0:00:03]} 48. Ke4 {[%clk 0:00:49]}  Bg5 {[%clk 0:00:02]} 49. Rc1 {[%clk 0:00:47]}  Be7 {[%clk 0:00:02]} 50. Rc2 {[%clk 0:00:40]}  Bg5 {[%clk 0:00:02]} 51. Rf2 {[%clk 0:00:39]}  Be7 {[%clk 0:00:01]} 52. Rf7 {[%clk 0:00:37]}  Bc5 {[%clk 0:00:01]} 53. Rf2 {[%clk 0:00:34]}  Ba3 {[%clk 0:00:01]} 54. g5 {[%clk 0:00:32]}  hxg5 {[%clk 0:00:02]} 55. h6 {[%clk 0:00:32]}  Bb2 {[%clk 0:00:01]} 56. Rc2 {[%clk 0:00:31]}  Kb4 {[%clk 0:00:01]} 1-0


[Site "https://www.chess.com"]

[Event "Titled Tuesday Blitz December 7 2021"]
[White "Sadykov, Ramil"]
[Black "Popadic, Dragan"]
[WhiteFideId "24113590"]
[BlackFideId "913650"]
[WhiteElo "2300"]
[BlackElo "2177"]
[Result "1-0"]
[Round "07"]
[TimeControl "180+1"]
[Date "2021.12.07"]
[WhiteClock "0:00:06"]
[BlackClock "0:00:47"]

1. e4 {[%clk 0:03:00]}  c5 {[%clk 0:02:59]} 2. Nc3 {[%clk 0:03:01]}  Nc6 {[%clk 0:02:59]} 3. g3 {[%clk 0:03:01]}  g6 {[%clk 0:02:58]} 4. Bg2 {[%clk 0:03:02]}  Bg7 {[%clk 0:02:58]} 5. d3 {[%clk 0:03:02]}  d6 {[%clk 0:02:57]} 6. Be3 {[%clk 0:03:03]}  Rb8 {[%clk 0:02:56]} 7. Qd2 {[%clk 0:03:00]}  b5 {[%clk 0:02:56]} 8. a3 {[%clk 0:03:01]}  a5 {[%clk 0:02:55]} 9. Nge2 {[%clk 0:03:00]}  b4 {[%clk 0:02:55]} 10. axb4 {[%clk 0:03:01]}  axb4 {[%clk 0:02:55]} 11. Nd1 {[%clk 0:03:01]}  Nd4 {[%clk 0:02:55]} 12. O-O {[%clk 0:03:00]}  e6 {[%clk 0:02:53]} 13. f4 {[%clk 0:02:44]}  Ne7 {[%clk 0:02:52]} 14. g4 {[%clk 0:02:41]}  f5 {[%clk 0:02:47]} 15. exf5 {[%clk 0:02:33]}  gxf5 {[%clk 0:02:44]} 16. g5 {[%clk 0:02:28]}  O-O {[%clk 0:02:36]} 17. Ng3 {[%clk 0:02:28]}  Ng6 {[%clk 0:02:31]} 18. Nh5 {[%clk 0:02:15]}  Bh8 {[%clk 0:02:31]} 19. Qf2 {[%clk 0:02:02]}  Bb7 {[%clk 0:02:23]} 20. c3 {[%clk 0:01:49]}  bxc3 {[%clk 0:02:20]} 21. bxc3 {[%clk 0:01:49]}  Bxg2 {[%clk 0:02:18]} 22. Qxg2 {[%clk 0:01:50]}  Nb5 {[%clk 0:02:16]} 23. Bd2 {[%clk 0:01:06]}  Ra8 {[%clk 0:01:49]} 24. Rb1 {[%clk 0:01:04]}  Nc7 {[%clk 0:01:45]} 25. Re1 {[%clk 0:01:02]}  Rb8 {[%clk 0:01:41]} 26. Ra1 {[%clk 0:00:55]}  Qd7 {[%clk 0:01:34]} 27. Ra7 {[%clk 0:00:52]}  Ra8 {[%clk 0:01:34]} 28. Rxa8 {[%clk 0:00:41]}  Rxa8 {[%clk 0:01:32]} 29. Ne3 {[%clk 0:00:37]}  Ra2 {[%clk 0:01:28]} 30. Rb1 {[%clk 0:00:18]}  Nh4 {[%clk 0:01:14]} 31. Rb8+ {[%clk 0:00:11]}  Kf7 {[%clk 0:01:13]} 32. Qf2 {[%clk 0:00:07]}  Rxd2 {[%clk 0:01:09]} 33. Qxh4 {[%clk 0:00:07]}  Qa4 {[%clk 0:01:00]} 34. Rxh8 {[%clk 0:00:05]}  Qa1+ {[%clk 0:00:56]} 35. Nf1 {[%clk 0:00:05]}  Qxc3 {[%clk 0:00:53]} 36. Rxh7+ {[%clk 0:00:05]}  Ke8 {[%clk 0:00:51]} 37. Nf6+ {[%clk 0:00:04]}  Kd8 {[%clk 0:00:51]} 38. Rh8+ {[%clk 0:00:05]}  Ne8 {[%clk 0:00:50]} 39. Rxe8+ {[%clk 0:00:05]}  Kc7 {[%clk 0:00:50]} 40. Qh7+ {[%clk 0:00:06]}  Kb6 {[%clk 0:00:47]} 41. Rb8+ {[%clk 0:00:06]}  Ka5 {[%clk 0:00:47]} 42. Qa7# {[%clk 0:00:06]} 1-0


[Site "https://www.chess.com"]

[Event "Titled Tuesday Blitz December 7 2021"]
[White "Saydaliev, Saidakbar"]
[Black "Adewumi, Tanitoluwa"]
[WhiteFideId "14203693"]
[BlackFideId "30966396"]
[WhiteElo "2279"]
[BlackElo "2566"]
[Result "1-0"]
[Round "07"]
[TimeControl "180+1"]
[Date "2021.12.07"]
[WhiteClock "0:02:01"]
[BlackClock "0:01:04"]

1. d4 {[%clk 0:03:00]}  Nf6 {[%clk 0:02:56]} 2. c4 {[%clk 0:03:01]}  g6 {[%clk 0:02:56]} 3. Nf3 {[%clk 0:02:58]}  Bg7 {[%clk 0:02:56]} 4. g3 {[%clk 0:02:59]}  O-O {[%clk 0:02:55]} 5. Bg2 {[%clk 0:03:00]}  d6 {[%clk 0:02:55]} 6. Nc3 {[%clk 0:02:59]}  Nc6 {[%clk 0:02:56]} 7. O-O {[%clk 0:02:59]}  e5 {[%clk 0:02:56]} 8. dxe5 {[%clk 0:03:00]}  dxe5 {[%clk 0:02:50]} 9. Bg5 {[%clk 0:02:59]}  Be6 {[%clk 0:02:49]} 10. Qa4 {[%clk 0:02:59]}  h6 {[%clk 0:02:48]} 11. Bxf6 {[%clk 0:02:59]}  Bxf6 {[%clk 0:02:49]} 12. Rfd1 {[%clk 0:02:57]}  Qe7 {[%clk 0:02:40]} 13. Nd5 {[%clk 0:02:56]}  Bxd5 {[%clk 0:02:39]} 14. cxd5 {[%clk 0:02:56]}  Nd4 {[%clk 0:02:38]} 15. Nxd4 {[%clk 0:02:34]}  exd4 {[%clk 0:02:36]} 16. Bf3 {[%clk 0:02:35]}  Rfd8 {[%clk 0:02:23]} 17. Rac1 {[%clk 0:02:34]}  Qd6 {[%clk 0:02:17]} 18. Qb5 {[%clk 0:02:28]}  Rab8 {[%clk 0:02:12]} 19. h4 {[%clk 0:02:28]}  a6 {[%clk 0:02:07]} 20. Qd3 {[%clk 0:02:26]}  Kg7 {[%clk 0:01:54]} 21. h5 {[%clk 0:02:26]}  Be5 {[%clk 0:01:42]} 22. Rc4 {[%clk 0:02:17]}  Qd7 {[%clk 0:01:20]} 23. Rdc1 {[%clk 0:02:06]}  c5 {[%clk 0:01:13]} 24. dxc6 {[%clk 0:02:05]}  bxc6 {[%clk 0:01:14]} 25. hxg6 {[%clk 0:02:03]}  fxg6 {[%clk 0:01:11]} 26. Rxc6 {[%clk 0:02:03]}  Bf6 {[%clk 0:01:11]} 27. Rc7 {[%clk 0:02:02]}  Qxc7 {[%clk 0:01:05]} 28. Rxc7+ {[%clk 0:02:02]}  Rd7 {[%clk 0:01:04]} 29. Rxd7+ {[%clk 0:02:02]}  Be7 {[%clk 0:01:04]} 30. Rxe7+ {[%clk 0:02:02]}  Kf6 {[%clk 0:01:04]} 31. Qe4 {[%clk 0:02:01]} 1-0


[Site "https://www.chess.com"]

[Event "Titled Tuesday Blitz December 7 2021"]
[White "Shipov, Sergei"]
[Black "Alinasab, Mobina"]
[WhiteFideId "4113624"]
[BlackFideId "12528897"]
[WhiteElo "2753"]
[BlackElo "2061"]
[Result "0-1"]
[Round "07"]
[TimeControl "180+1"]
[Date "2021.12.07"]
[WhiteClock "0:00:38"]
[BlackClock "0:00:19"]

1. d4 {[%clk 0:03:00]}  d5 {[%clk 0:02:57]} 2. c4 {[%clk 0:03:01]}  e6 {[%clk 0:02:56]} 3. Nc3 {[%clk 0:03:01]}  c5 {[%clk 0:02:56]} 4. cxd5 {[%clk 0:03:01]}  exd5 {[%clk 0:02:57]} 5. Nf3 {[%clk 0:03:00]}  Nf6 {[%clk 0:02:57]} 6. g3 {[%clk 0:03:01]}  Nc6 {[%clk 0:02:56]} 7. Bg2 {[%clk 0:03:01]}  cxd4 {[%clk 0:02:56]} 8. Nxd4 {[%clk 0:03:01]}  Bc5 {[%clk 0:02:57]} 9. Nb3 {[%clk 0:03:01]}  Bb6 {[%clk 0:02:57]} 10. Na4 {[%clk 0:02:59]}  d4 {[%clk 0:02:29]} 11. Bxc6+ {[%clk 0:02:55]}  bxc6 {[%clk 0:02:27]} 12. Nxb6 {[%clk 0:02:55]}  axb6 {[%clk 0:02:27]} 13. Qxd4 {[%clk 0:02:55]}  O-O {[%clk 0:02:19]} 14. Qxd8 {[%clk 0:02:41]}  Rxd8 {[%clk 0:02:20]} 15. f3 {[%clk 0:02:41]}  Be6 {[%clk 0:02:09]} 16. Nd2 {[%clk 0:02:19]}  Nd5 {[%clk 0:02:09]} 17. Kf2 {[%clk 0:02:10]}  Nb4 {[%clk 0:02:05]} 18. b3 {[%clk 0:01:59]}  Nxa2 {[%clk 0:01:58]} 19. Nc4 {[%clk 0:01:51]}  b5 {[%clk 0:01:14]} 20. Ne5 {[%clk 0:01:51]}  Rdc8 {[%clk 0:00:51]} 21. Bd2 {[%clk 0:01:37]}  Bxb3 {[%clk 0:00:50]} 22. Rhb1 {[%clk 0:01:35]}  Be6 {[%clk 0:00:49]} 23. Rb2 {[%clk 0:01:29]}  f6 {[%clk 0:00:49]} 24. Nd3 {[%clk 0:01:29]}  Bc4 {[%clk 0:00:44]} 25. Nc5 {[%clk 0:01:27]}  Kf7 {[%clk 0:00:40]} 26. e4 {[%clk 0:01:27]}  Ra3 {[%clk 0:00:39]} 27. Bb4 {[%clk 0:01:15]}  Ra7 {[%clk 0:00:35]} 28. Bd2 {[%clk 0:01:15]}  Rca8 {[%clk 0:00:35]} 29. g4 {[%clk 0:01:08]}  Ra3 {[%clk 0:00:35]} 30. h4 {[%clk 0:01:07]}  Nc3 {[%clk 0:00:30]} 31. Rxa3 {[%clk 0:01:03]}  Rxa3 {[%clk 0:00:31]} 32. Rc2 {[%clk 0:00:44]}  Na4 {[%clk 0:00:19]} 33. Bf4 {[%clk 0:00:38]}  Nxc5 {[%clk 0:00:19]} 0-1


[Site "https://www.chess.com"]

[Event "Titled Tuesday Blitz December 7 2021"]
[White "Shkapenko, Pavel"]
[Black "Lin, Dachey"]
[WhiteFideId "4151933"]
[BlackFideId "2029650"]
[WhiteElo "2386"]
[BlackElo "2597"]
[Result "1-0"]
[Round "07"]
[TimeControl "180+1"]
[Date "2021.12.07"]
[WhiteClock "0:00:08"]
[BlackClock "0:00:01"]

1. e4 {[%clk 0:03:00]}  d5 {[%clk 0:03:00]} 2. exd5 {[%clk 0:03:00]}  Qxd5 {[%clk 0:03:00]} 3. Nf3 {[%clk 0:03:00]}  Bg4 {[%clk 0:03:00]} 4. Be2 {[%clk 0:03:00]}  Nf6 {[%clk 0:03:01]} 5. d4 {[%clk 0:02:58]}  e6 {[%clk 0:03:01]} 6. O-O {[%clk 0:02:58]}  Be7 {[%clk 0:03:01]} 7. c4 {[%clk 0:02:57]}  Qd8 {[%clk 0:03:01]} 8. h3 {[%clk 0:02:54]}  Bh5 {[%clk 0:03:01]} 9. Nc3 {[%clk 0:02:54]}  O-O {[%clk 0:03:00]} 10. Be3 {[%clk 0:02:53]}  Nbd7 {[%clk 0:02:59]} 11. Qb3 {[%clk 0:02:52]}  Qc8 {[%clk 0:02:59]} 12. Rac1 {[%clk 0:02:44]}  Rd8 {[%clk 0:02:53]} 13. g4 {[%clk 0:02:42]}  Bg6 {[%clk 0:02:50]} 14. Ne5 {[%clk 0:02:43]}  Nxe5 {[%clk 0:02:48]} 15. dxe5 {[%clk 0:02:43]}  Nd7 {[%clk 0:02:49]} 16. f4 {[%clk 0:02:43]}  Bc5 {[%clk 0:02:41]} 17. Na4 {[%clk 0:02:40]}  Bxe3+ {[%clk 0:02:28]} 18. Qxe3 {[%clk 0:02:39]}  Nb8 {[%clk 0:02:13]} 19. Qf2 {[%clk 0:02:25]}  Rd2 {[%clk 0:02:04]} 20. Qe3 {[%clk 0:02:16]}  Rd8 {[%clk 0:01:54]} 21. Nc5 {[%clk 0:01:49]}  Nc6 {[%clk 0:01:49]} 22. Bf3 {[%clk 0:01:46]}  Rb8 {[%clk 0:01:31]} 23. Bg2 {[%clk 0:01:31]}  Ne7 {[%clk 0:01:25]} 24. Nb3 {[%clk 0:01:29]}  b6 {[%clk 0:01:22]} 25. Rcd1 {[%clk 0:01:27]}  Qa6 {[%clk 0:01:20]} 26. Qc3 {[%clk 0:01:24]}  c5 {[%clk 0:01:16]} 27. a3 {[%clk 0:01:22]}  Qa4 {[%clk 0:01:15]} 28. Rd6 {[%clk 0:01:14]}  a6 {[%clk 0:00:36]} 29. Rfd1 {[%clk 0:01:10]}  Rdc8 {[%clk 0:00:37]} 30. Rd7 {[%clk 0:00:40]}  Kf8 {[%clk 0:00:34]} 31. R1d6 {[%clk 0:00:37]}  b5 {[%clk 0:00:31]} 32. Qd2 {[%clk 0:00:35]}  Re8 {[%clk 0:00:29]} 33. Nxc5 {[%clk 0:00:33]}  Qxc4 {[%clk 0:00:27]} 34. b4 {[%clk 0:00:32]}  a5 {[%clk 0:00:26]} 35. Rd8 {[%clk 0:00:31]}  Rbxd8 {[%clk 0:00:08]} 36. Rxd8 {[%clk 0:00:31]}  f6 {[%clk 0:00:09]} 37. Bf1 {[%clk 0:00:23]}  Qc2 {[%clk 0:00:04]} 38. Rxe8+ {[%clk 0:00:22]}  Kxe8 {[%clk 0:00:05]} 39. Qd7+ {[%clk 0:00:21]}  Kf7 {[%clk 0:00:05]} 40. Qxe6+ {[%clk 0:00:21]}  Kf8 {[%clk 0:00:06]} 41. exf6 {[%clk 0:00:20]}  gxf6 {[%clk 0:00:06]} 42. Nd7+ {[%clk 0:00:20]}  Ke8 {[%clk 0:00:06]} 43. Nxf6+ {[%clk 0:00:20]}  Kf8 {[%clk 0:00:07]} 44. Nd7+ {[%clk 0:00:20]}  Ke8 {[%clk 0:00:07]} 45. f5 {[%clk 0:00:20]}  Bf7 {[%clk 0:00:07]} 46. Nf6+ {[%clk 0:00:20]}  Kf8 {[%clk 0:00:06]} 47. Qe5 {[%clk 0:00:20]}  h6 {[%clk 0:00:05]} 48. bxa5 {[%clk 0:00:19]}  Nc6 {[%clk 0:00:01]} 49. Nd7+ {[%clk 0:00:17]}  Kg8 {[%clk 0:00:02]} 50. Nf6+ {[%clk 0:00:17]}  Kf8 {[%clk 0:00:02]} 51. Qd6+ {[%clk 0:00:17]}  Kg7 {[%clk 0:00:03]} 52. Nd7 {[%clk 0:00:13]}  Qc3 {[%clk 0:00:02]} 53. Qc5 {[%clk 0:00:12]}  Qf3 {[%clk 0:00:01]} 54. Qf2 {[%clk 0:00:08]} 1-0


[Site "https://www.chess.com"]

[Event "Titled Tuesday Blitz December 7 2021"]
[White "Sokolin, Leonid"]
[Black "Gelman, Alexander"]
[WhiteFideId "2009161"]
[BlackFideId "4118316"]
[WhiteElo "2394"]
[BlackElo "2375"]
[Result "0-1"]
[Round "07"]
[TimeControl "180+1"]
[Date "2021.12.07"]
[WhiteClock "0:00:21"]
[BlackClock "0:00:20"]

1. e4 {[%clk 0:03:00]}  c5 {[%clk 0:02:59]} 2. Nf3 {[%clk 0:03:00]}  e6 {[%clk 0:02:59]} 3. d4 {[%clk 0:03:00]}  cxd4 {[%clk 0:03:00]} 4. Nxd4 {[%clk 0:03:00]}  d6 {[%clk 0:02:59]} 5. c4 {[%clk 0:02:59]}  a6 {[%clk 0:02:59]} 6. Nc3 {[%clk 0:02:59]}  Nf6 {[%clk 0:02:59]} 7. Be2 {[%clk 0:02:57]}  b6 {[%clk 0:02:59]} 8. O-O {[%clk 0:02:52]}  Bb7 {[%clk 0:03:00]} 9. Qc2 {[%clk 0:02:42]}  Nbd7 {[%clk 0:03:00]} 10. Rd1 {[%clk 0:02:41]}  Rc8 {[%clk 0:02:57]} 11. f4 {[%clk 0:02:40]}  Qc7 {[%clk 0:02:51]} 12. f5 {[%clk 0:02:37]}  e5 {[%clk 0:02:48]} 13. Nb3 {[%clk 0:02:35]}  Be7 {[%clk 0:02:46]} 14. a4 {[%clk 0:02:34]}  O-O {[%clk 0:02:43]} 15. Be3 {[%clk 0:02:34]}  h6 {[%clk 0:02:25]} 16. Rac1 {[%clk 0:02:17]}  Qb8 {[%clk 0:02:24]} 17. Bf2 {[%clk 0:01:59]}  b5 {[%clk 0:02:08]} 18. Na5 {[%clk 0:01:37]}  bxc4 {[%clk 0:01:44]} 19. Bxc4 {[%clk 0:01:13]}  Ba8 {[%clk 0:01:18]} 20. Bxa6 {[%clk 0:01:13]}  Rc5 {[%clk 0:01:04]} 21. Bb5 {[%clk 0:01:10]}  Bxe4 {[%clk 0:00:58]} 22. Qe2 {[%clk 0:00:56]}  Qa8 {[%clk 0:00:51]} 23. Bxc5 {[%clk 0:00:53]}  Nxc5 {[%clk 0:00:51]} 24. Nxe4 {[%clk 0:00:53]}  Ncxe4 {[%clk 0:00:51]} 25. Nc6 {[%clk 0:00:50]}  Bd8 {[%clk 0:00:47]} 26. Rxd6 {[%clk 0:00:38]}  Bb6+ {[%clk 0:00:43]} 27. Kf1 {[%clk 0:00:37]}  Nxd6 {[%clk 0:00:42]} 28. Qxe5 {[%clk 0:00:37]}  Nde4 {[%clk 0:00:39]} 29. Ne7+ {[%clk 0:00:34]}  Kh8 {[%clk 0:00:38]} 30. Rd1 {[%clk 0:00:33]}  Qa5 {[%clk 0:00:27]} 31. Qf4 {[%clk 0:00:26]}  Qb4 {[%clk 0:00:24]} 32. Nd5 {[%clk 0:00:24]}  Qc5 {[%clk 0:00:21]} 33. Nxf6 {[%clk 0:00:21]}  Qg1+ {[%clk 0:00:20]} 34. Ke2 {[%clk 0:00:21]}  Qxg2+ {[%clk 0:00:21]} 35. Kd3 {[%clk 0:00:21]}  Nxf6 {[%clk 0:00:20]} 36. Rd2 {[%clk 0:00:21]}  Rd8+ {[%clk 0:00:20]} 0-1


[Site "https://www.chess.com"]

[Event "Titled Tuesday Blitz December 7 2021"]
[White "Stoyanov, Tsvetan"]
[Black "Bacrot, Etienne"]
[WhiteFideId "2917173"]
[BlackFideId "605506"]
[WhiteElo "2191"]
[BlackElo "2673"]
[Result "1/2-1/2"]
[Round "07"]
[TimeControl "180+1"]
[Date "2021.12.07"]
[WhiteClock "0:00:10"]
[BlackClock "0:00:18"]

1. e4 {[%clk 0:02:35]}  d5 {[%clk 0:03:00]} 2. exd5 {[%clk 0:02:35]}  Qxd5 {[%clk 0:03:00]} 3. Nf3 {[%clk 0:02:35]}  Nc6 {[%clk 0:02:59]} 4. Nc3 {[%clk 0:02:34]}  Qa5 {[%clk 0:02:59]} 5. d4 {[%clk 0:02:30]}  Nf6 {[%clk 0:02:59]} 6. h3 {[%clk 0:02:28]}  Bf5 {[%clk 0:02:58]} 7. Bc4 {[%clk 0:02:27]}  e6 {[%clk 0:02:43]} 8. O-O {[%clk 0:02:25]}  Bb4 {[%clk 0:02:41]} 9. Bd2 {[%clk 0:02:23]}  O-O-O {[%clk 0:02:40]} 10. a3 {[%clk 0:02:19]}  Bxc3 {[%clk 0:02:39]} 11. Bxc3 {[%clk 0:02:18]}  Qb6 {[%clk 0:02:40]} 12. a4 {[%clk 0:01:57]}  a5 {[%clk 0:02:39]} 13. Qe2 {[%clk 0:01:51]}  Be4 {[%clk 0:02:18]} 14. Ne5 {[%clk 0:01:44]}  Rhf8 {[%clk 0:01:42]} 15. Nxc6 {[%clk 0:01:24]}  Bxc6 {[%clk 0:01:33]} 16. b4 {[%clk 0:01:05]}  Ne4 {[%clk 0:01:06]} 17. bxa5 {[%clk 0:00:38]}  Nxc3 {[%clk 0:01:04]} 18. axb6 {[%clk 0:00:37]}  Nxe2+ {[%clk 0:01:02]} 19. Bxe2 {[%clk 0:00:38]}  cxb6 {[%clk 0:00:55]} 20. c3 {[%clk 0:00:37]}  Kc7 {[%clk 0:00:54]} 21. a5 {[%clk 0:00:34]}  Ra8 {[%clk 0:00:47]} 22. axb6+ {[%clk 0:00:33]}  Kxb6 {[%clk 0:00:48]} 23. Rfb1+ {[%clk 0:00:33]}  Kc7 {[%clk 0:00:48]} 24. Kf1 {[%clk 0:00:32]}  Rfd8 {[%clk 0:00:45]} 25. f4 {[%clk 0:00:25]}  Be4 {[%clk 0:00:43]} 26. Rc1 {[%clk 0:00:22]}  h6 {[%clk 0:00:42]} 27. Kf2 {[%clk 0:00:21]}  g5 {[%clk 0:00:42]} 28. fxg5 {[%clk 0:00:22]}  hxg5 {[%clk 0:00:42]} 29. Bf3 {[%clk 0:00:22]}  Bxf3 {[%clk 0:00:38]} 30. Kxf3 {[%clk 0:00:23]}  f5 {[%clk 0:00:37]} 31. g4 {[%clk 0:00:15]}  Rxa1 {[%clk 0:00:30]} 32. Rxa1 {[%clk 0:00:14]}  Rh8 {[%clk 0:00:30]} 33. Kg3 {[%clk 0:00:11]}  Kd6 {[%clk 0:00:30]} 34. Rb1 {[%clk 0:00:10]}  Rc8 {[%clk 0:00:29]} 35. Rb3 {[%clk 0:00:07]}  Rc6 {[%clk 0:00:23]} 36. gxf5 {[%clk 0:00:07]}  exf5 {[%clk 0:00:23]} 37. h4 {[%clk 0:00:07]}  gxh4+ {[%clk 0:00:18]} 38. Kxh4 {[%clk 0:00:08]}  Kd5 {[%clk 0:00:18]} 39. Kg5 {[%clk 0:00:09]}  Ke4 {[%clk 0:00:17]} 40. Rxb7 {[%clk 0:00:08]}  Rxc3 {[%clk 0:00:17]} 41. Re7+ {[%clk 0:00:09]}  Kxd4 {[%clk 0:00:17]} 42. Kxf5 {[%clk 0:00:10]}  Rf3+ {[%clk 0:00:18]} 43. Ke6 {[%clk 0:00:09]}  Re3+ {[%clk 0:00:18]} 44. Kd7 {[%clk 0:00:10]}  Rxe7+ {[%clk 0:00:18]} 45. Kxe7 {[%clk 0:00:10]} 1/2-1/2


[Site "https://www.chess.com"]